[Event "Live Chess"]
[Site "Chess.com"]
[Date "2023.05.21"]
[Round "-"]
[White "LiamBellwood"]
[Black "ChessTWSS"]
[Result "0-1"]
[WhiteElo "1912"]
[BlackElo "1633"]
[TimeControl "300"]
[EndTime "3:59:29 PDT"]
[Termination "ChessTWSS won by resignation"]

1. d4 {[%clk 0:04:59.7]} 1... d5 {[%clk 0:04:57.5]} 2. Nc3 {[%clk 0:04:55]} 2...
c5 {[%clk 0:04:43.5]} 3. e4 {[%clk 0:04:53.7]} 3... dxe4 {[%clk 0:04:37.4]} 4.
d5 {[%clk 0:04:52.6]} 4... Nf6 {[%clk 0:04:32.9]} 5. Nge2 {[%clk 0:04:47.4]}
5... e6 {[%clk 0:04:28.9]} 6. dxe6 {[%clk 0:04:42.1]} 6... Qxd1+ {[%clk
0:04:23.8]} 7. Kxd1 {[%clk 0:04:41.6]} 7... Bxe6 {[%clk 0:04:17]} 8. Ng3 {[%clk
0:04:41.5]} 8... Be7 {[%clk 0:04:12.6]} 9. Bb5+ {[%clk 0:04:38.3]} 9... Bd7
{[%clk 0:04:01.5]} 10. Bxd7+ {[%clk 0:04:37.4]} 10... Nbxd7 {[%clk 0:04:01.4]}
11. Ngxe4 {[%clk 0:04:36.7]} 11... Nxe4 {[%clk 0:03:54.2]} 12. Nxe4 {[%clk
0:04:36.6]} 12... O-O {[%clk 0:03:44.6]} 13. Re1 {[%clk 0:04:35]} 13... f5
{[%clk 0:03:37.9]} 14. Nc3 {[%clk 0:04:30.2]} 14... Bf6 {[%clk 0:03:25.7]} 15.
Bd2 {[%clk 0:04:22]} 15... Bxc3 {[%clk 0:03:16.2]} 16. Bxc3 {[%clk 0:04:20.6]}
16... Rfe8 {[%clk 0:03:11]} 17. Kd2 {[%clk 0:04:07.8]} 17... Rxe1 {[%clk
0:03:02.3]} 18. Rxe1 {[%clk 0:04:07.7]} 18... Nf6 {[%clk 0:02:51.9]} 19. f3
{[%clk 0:04:03.9]} 19... Re8 {[%clk 0:02:42.7]} 20. Bxf6 {[%clk 0:03:56.6]}
20... Rxe1 {[%clk 0:02:41]} 21. Kxe1 {[%clk 0:03:56.5]} 21... gxf6 {[%clk
0:02:34.7]} 22. f4 {[%clk 0:03:55.9]} 22... Kg7 {[%clk 0:02:27.7]} 23. Kd2
{[%clk 0:03:51.1]} 23... Kh6 {[%clk 0:02:26.8]} 24. Kd3 {[%clk 0:03:50.5]} 24...
Kh5 {[%clk 0:02:26.1]} 25. a4 {[%clk 0:03:49.9]} 25... Kg4 {[%clk 0:02:24.9]}
26. Ke3 {[%clk 0:03:49]} 26... a5 {[%clk 0:02:20.2]} 27. b3 {[%clk 0:03:44.4]}
27... h6 {[%clk 0:02:18.8]} 28. c3 {[%clk 0:03:43.4]} 28... h5 {[%clk
0:02:17.9]} 29. Kd3 {[%clk 0:03:25.3]} 29... Kxf4 {[%clk 0:02:13]} 30. Kc4
{[%clk 0:03:24.7]} 30... h4 {[%clk 0:02:11.8]} 31. Kxc5 {[%clk 0:03:21.5]} 31...
h3 {[%clk 0:02:11.1]} 32. gxh3 {[%clk 0:03:17.3]} 32... Kg5 {[%clk 0:02:09.2]}
33. Kb6 {[%clk 0:03:14.9]} 33... Kh4 {[%clk 0:02:09.1]} 34. Kxb7 {[%clk
0:03:10]} 34... Kxh3 {[%clk 0:02:09]} 35. c4 {[%clk 0:03:09.2]} 35... Kxh2
{[%clk 0:02:08.9]} 36. c5 {[%clk 0:03:09.1]} 36... f4 {[%clk 0:02:08.3]} 37. c6
{[%clk 0:03:09]} 37... f3 {[%clk 0:02:08.2]} 38. c7 {[%clk 0:03:08.6]} 38... f2
{[%clk 0:02:08.1]} 39. c8=Q {[%clk 0:03:08.5]} 39... f1=Q {[%clk 0:02:06.9]} 40.
Qc2+ {[%clk 0:03:02]} 40... Qg2+ {[%clk 0:02:05.7]} 0-1

[Event "Live Chess"]
[Site "Chess.com"]
[Date "2023.05.21"]
[Round "-"]
[White "f4nomore"]
[Black "LL220284LL"]
[Result "0-1"]
[WhiteElo "1403"]
[BlackElo "2316"]
[TimeControl "300"]
[EndTime "3:59:53 PDT"]
[Termination "LL220284LL won by resignation"]

1. d4 {[%clk 0:04:57.6]} 1... Nh6 {[%clk 0:04:55.7]} 2. Bxh6 {[%clk 0:04:55.5]}
2... gxh6 {[%clk 0:04:55.6]} 3. Nf3 {[%clk 0:04:53.9]} 3... d5 {[%clk
0:04:55.2]} 4. e3 {[%clk 0:04:52.8]} 4... c6 {[%clk 0:04:54.8]} 5. Bd3 {[%clk
0:04:51.7]} 5... Nd7 {[%clk 0:04:52.4]} 6. O-O {[%clk 0:04:50.4]} 6... Qc7
{[%clk 0:04:50.9]} 7. c4 {[%clk 0:04:45.8]} 7... dxc4 {[%clk 0:04:47.5]} 8. Bxc4
{[%clk 0:04:44]} 8... e5 {[%clk 0:04:47.2]} 9. Qb3 {[%clk 0:04:37.6]} 9... Nb6
{[%clk 0:04:42.2]} 10. Nxe5 {[%clk 0:04:29.9]} 10... Nxc4 {[%clk 0:04:40.7]} 11.
Qxc4 {[%clk 0:04:28.2]} 11... Bd6 {[%clk 0:04:38.8]} 12. f4 {[%clk 0:04:20.8]}
12... Be6 {[%clk 0:04:37.4]} 13. Qd3 {[%clk 0:04:14.2]} 13... f6 {[%clk
0:04:31.4]} 14. Nf3 {[%clk 0:04:07.1]} 14... Rg8 {[%clk 0:04:28.5]} 15. g3
{[%clk 0:04:00.5]} 15... O-O-O {[%clk 0:04:25.9]} 16. Nc3 {[%clk 0:03:58.5]}
16... Rde8 {[%clk 0:04:23.3]} 17. Ne4 {[%clk 0:03:56.3]} 17... Bf5 {[%clk
0:04:21.4]} 18. Nxd6+ {[%clk 0:03:52.2]} 18... Qxd6 {[%clk 0:04:19.3]} 19. Qxf5+
{[%clk 0:03:49.9]} 19... Kb8 {[%clk 0:04:19.2]} 20. b3 {[%clk 0:03:44.7]} 20...
Rxe3 {[%clk 0:04:17]} 21. Qxh7 {[%clk 0:03:35.9]} 21... Rge8 {[%clk 0:04:11.7]}
22. Rad1 {[%clk 0:03:31]} 22... Qd5 {[%clk 0:04:09.2]} 23. Qg6 {[%clk 0:03:21]}
23... Rg8 {[%clk 0:04:03.2]} 24. Qxf6 {[%clk 0:03:15.9]} 24... Rxf3 {[%clk
0:04:01.4]} 25. Qe5+ {[%clk 0:03:03.8]} 25... Qxe5 {[%clk 0:03:57.9]} 26. dxe5
{[%clk 0:03:02]} 26... Re3 {[%clk 0:03:57.2]} 27. f5 {[%clk 0:02:56.6]} 27...
Rxe5 {[%clk 0:03:56.1]} 28. f6 {[%clk 0:02:54.5]} 28... Rf8 {[%clk 0:03:53.6]}
29. Rd6 {[%clk 0:02:46.6]} 29... Kc7 {[%clk 0:03:52.1]} 30. Rdd1 {[%clk
0:02:40.4]} 30... Re6 {[%clk 0:03:51]} 31. f7 {[%clk 0:02:39]} 31... Re7 {[%clk
0:03:49.6]} 32. Rd4 {[%clk 0:02:28.7]} 32... Rfxf7 {[%clk 0:03:47.8]} 33. Rxf7
{[%clk 0:02:25.9]} 33... Rxf7 {[%clk 0:03:47.7]} 34. Rh4 {[%clk 0:02:24.2]}
34... Rf6 {[%clk 0:03:47.2]} 35. Kg2 {[%clk 0:02:21]} 35... b5 {[%clk
0:03:45.9]} 36. Rg4 {[%clk 0:02:17]} 36... c5 {[%clk 0:03:44.4]} 37. Rg7+ {[%clk
0:02:14.9]} 37... Kb6 {[%clk 0:03:43.4]} 38. a3 {[%clk 0:02:11.3]} 38... c4
{[%clk 0:03:41.7]} 39. bxc4 {[%clk 0:02:08.1]} 39... bxc4 {[%clk 0:03:41.6]} 40.
Rg4 {[%clk 0:02:04.9]} 40... Kc5 {[%clk 0:03:40.7]} 41. Re4 {[%clk 0:01:57.9]}
41... c3 {[%clk 0:03:39.1]} 42. Re1 {[%clk 0:01:56.6]} 42... Kd4 {[%clk
0:03:37.5]} 43. Rc1 {[%clk 0:01:55.2]} 43... Kd3 {[%clk 0:03:35.2]} 44. Rd1+
{[%clk 0:01:46.2]} 44... Ke2 {[%clk 0:03:33.9]} 45. Rc1 {[%clk 0:01:44.3]} 45...
Kd2 {[%clk 0:03:33]} 46. Ra1 {[%clk 0:01:41.6]} 46... c2 {[%clk 0:03:32.3]} 47.
Ra2 {[%clk 0:01:40.4]} 47... Kd1 {[%clk 0:03:31.8]} 0-1

[Event "Live Chess"]
[Site "Chess.com"]
[Date "2023.05.21"]
[Round "-"]
[White "CeladonFish"]
[Black "Davidagye"]
[Result "0-1"]
[WhiteElo "1081"]
[BlackElo "1686"]
[TimeControl "300"]
[EndTime "4:00:08 PDT"]
[Termination "Davidagye won by resignation"]

1. d4 {[%clk 0:04:59.2]} 1... d5 {[%clk 0:04:56.8]} 2. c4 {[%clk 0:04:57.9]}
2... c6 {[%clk 0:04:55.1]} 3. Nc3 {[%clk 0:04:56.5]} 3... e6 {[%clk 0:04:53.2]}
4. Bf4 {[%clk 0:04:55.4]} 4... Nf6 {[%clk 0:04:51]} 5. Nf3 {[%clk 0:04:53.2]}
5... dxc4 {[%clk 0:04:49.8]} 6. e3 {[%clk 0:04:51.8]} 6... b5 {[%clk 0:04:48.6]}
7. a4 {[%clk 0:04:50.1]} 7... Bb4 {[%clk 0:04:43.4]} 8. axb5 {[%clk 0:04:34.2]}
8... cxb5 {[%clk 0:04:42]} 9. Qc2 {[%clk 0:04:07.5]} 9... Bb7 {[%clk 0:04:38.6]}
10. Nd2 {[%clk 0:04:01.9]} 10... Bxc3 {[%clk 0:04:16.8]} 11. bxc3 {[%clk
0:03:55.6]} 11... Nd5 {[%clk 0:04:15.4]} 12. Be5 {[%clk 0:03:52.9]} 12... f6
{[%clk 0:04:12.1]} 13. Bg3 {[%clk 0:03:40.4]} 13... O-O {[%clk 0:03:49.7]} 14.
e4 {[%clk 0:03:38.5]} 14... Nb6 {[%clk 0:03:47.1]} 15. Qb2 {[%clk 0:03:06.2]}
15... Qd7 {[%clk 0:03:43]} 16. Ra5 {[%clk 0:02:57]} 16... a6 {[%clk 0:03:38.7]}
17. Be2 {[%clk 0:02:29.5]} 17... Nc6 {[%clk 0:03:36.8]} 18. Ra1 {[%clk 0:02:20]}
18... Rac8 {[%clk 0:03:12.8]} 19. O-O {[%clk 0:02:18.1]} 19... Nxd4 {[%clk
0:03:11.4]} 20. cxd4 {[%clk 0:02:11.9]} 20... c3 {[%clk 0:03:09.8]} 21. Qa2
{[%clk 0:01:55.4]} 21... cxd2 {[%clk 0:03:06.5]} 22. Qxd2 {[%clk 0:01:55]} 22...
Nc4 {[%clk 0:03:04.2]} 23. Bxc4 {[%clk 0:01:53]} 23... Rxc4 {[%clk 0:03:02.5]}
24. Rac1 {[%clk 0:01:47.4]} 24... Rxd4 {[%clk 0:03:00.3]} 25. Qc2 {[%clk
0:01:38.5]} 25... Bxe4 {[%clk 0:02:55.4]} 26. Qc5 {[%clk 0:01:30.8]} 26... Bb7
{[%clk 0:02:48.1]} 27. f3 {[%clk 0:00:24.9]} 27... Rc8 {[%clk 0:02:45]} 28. Qa3
{[%clk 0:00:16.9]} 28... Rd2 {[%clk 0:02:42.9]} 29. Rxc8+ {[%clk 0:00:14.6]}
29... Qxc8 {[%clk 0:02:38.3]} 30. Qe3 {[%clk 0:00:12.8]} 0-1

[Event "Live Chess"]
[Site "Chess.com"]
[Date "2023.05.21"]
[Round "-"]
[White "JanMur7"]
[Black "manthanit"]
[Result "1-0"]
[WhiteElo "1978"]
[BlackElo "1088"]
[TimeControl "300"]
[EndTime "4:00:13 PDT"]
[Termination "JanMur7 won by checkmate"]

1. e4 {[%clk 0:04:59]} 1... e6 {[%clk 0:04:59.1]} 2. d4 {[%clk 0:04:58]} 2... d6
{[%clk 0:04:58.7]} 3. c4 {[%clk 0:04:56.6]} 3... b6 {[%clk 0:04:57.6]} 4. Nc3
{[%clk 0:04:55.6]} 4... Bb7 {[%clk 0:04:57.1]} 5. Nf3 {[%clk 0:04:54.6]} 5... a6
{[%clk 0:04:56.1]} 6. Bd3 {[%clk 0:04:53.9]} 6... h6 {[%clk 0:04:54]} 7. O-O
{[%clk 0:04:53.2]} 7... g6 {[%clk 0:04:53]} 8. Bf4 {[%clk 0:04:48.9]} 8... Bg7
{[%clk 0:04:52]} 9. e5 {[%clk 0:04:48.1]} 9... Ne7 {[%clk 0:04:36.7]} 10. exd6
{[%clk 0:04:42]} 10... cxd6 {[%clk 0:04:35.9]} 11. Ne4 {[%clk 0:04:39.6]} 11...
Bxe4 {[%clk 0:04:20.7]} 12. Bxe4 {[%clk 0:04:37.3]} 12... d5 {[%clk 0:04:13.8]}
13. cxd5 {[%clk 0:04:35.2]} 13... exd5 {[%clk 0:04:13.1]} 14. Bc2 {[%clk
0:04:34.3]} 14... O-O {[%clk 0:04:10]} 15. Qd2 {[%clk 0:04:33.3]} 15... Nbc6
{[%clk 0:04:09.1]} 16. Bxh6 {[%clk 0:04:30.2]} 16... Bxh6 {[%clk 0:04:05]} 17.
Qxh6 {[%clk 0:04:30.1]} 17... Nf5 {[%clk 0:04:02.4]} 18. Bxf5 {[%clk 0:04:28.1]}
18... gxf5 {[%clk 0:04:00.5]} 19. Ng5 {[%clk 0:04:27.4]} 19... Qxg5 {[%clk
0:03:44.3]} 20. Qxg5+ {[%clk 0:04:25.5]} 20... Kh8 {[%clk 0:03:43.4]} 21. f4
{[%clk 0:04:24.2]} 21... Rg8 {[%clk 0:03:42.6]} 22. Qh6# {[%clk 0:04:23.3]} 1-0

[Event "Live Chess"]
[Site "Chess.com"]
[Date "2023.05.21"]
[Round "-"]
[White "mikeybaby1986"]
[Black "RoaringKnights"]
[Result "1-0"]
[WhiteElo "1301"]
[BlackElo "1081"]
[TimeControl "300"]
[EndTime "4:00:22 PDT"]
[Termination "mikeybaby1986 won by checkmate"]

1. e4 {[%clk 0:04:58.6]} 1... c6 {[%clk 0:04:58.1]} 2. Nf3 {[%clk 0:04:57.7]}
2... d5 {[%clk 0:04:56.6]} 3. exd5 {[%clk 0:04:56.4]} 3... cxd5 {[%clk
0:04:55.1]} 4. d4 {[%clk 0:04:54.7]} 4... Bf5 {[%clk 0:04:54.2]} 5. Nc3 {[%clk
0:04:50.1]} 5... e6 {[%clk 0:04:53.1]} 6. Bb5+ {[%clk 0:04:36.2]} 6... Nc6
{[%clk 0:04:51.5]} 7. O-O {[%clk 0:04:32.7]} 7... a6 {[%clk 0:04:46.4]} 8. Ba4
{[%clk 0:04:25.2]} 8... b5 {[%clk 0:04:42.6]} 9. Bb3 {[%clk 0:04:24]} 9... Nf6
{[%clk 0:04:39.6]} 10. a4 {[%clk 0:04:15.4]} 10... bxa4 {[%clk 0:04:35.4]} 11.
Bxa4 {[%clk 0:04:13.2]} 11... Rc8 {[%clk 0:04:32]} 12. Qe2 {[%clk 0:04:01.9]}
12... Bd6 {[%clk 0:04:22.8]} 13. Qxa6 {[%clk 0:03:55.7]} 13... Qc7 {[%clk
0:04:12.7]} 14. Bxc6+ {[%clk 0:03:43.9]} 14... Qxc6 {[%clk 0:04:10.5]} 15. Qxc6+
{[%clk 0:03:42.1]} 15... Rxc6 {[%clk 0:04:09.5]} 16. Ra8+ {[%clk 0:03:40.3]}
16... Ke7 {[%clk 0:04:02.7]} 17. Rxh8 {[%clk 0:03:38.4]} 17... Ne4 {[%clk
0:03:53.6]} 18. Nxe4 {[%clk 0:03:35.5]} 18... dxe4 {[%clk 0:03:52.1]} 19. Ne5
{[%clk 0:03:28.1]} 19... Bxe5 {[%clk 0:03:50]} 20. dxe5 {[%clk 0:03:26.2]} 20...
Rxc2 {[%clk 0:03:48.9]} 21. b4 {[%clk 0:02:53.7]} 21... e3 {[%clk 0:03:42.1]}
22. fxe3 {[%clk 0:02:48.6]} 22... Be4 {[%clk 0:03:40.3]} 23. Ba3 {[%clk
0:01:46.1]} 23... Rxg2+ {[%clk 0:03:36.6]} 24. Kh1 {[%clk 0:01:44.8]} 24... Ra2+
{[%clk 0:03:34.9]} 25. Kg1 {[%clk 0:01:42.9]} 25... Rxa3 {[%clk 0:03:33]} 26.
Rf4 {[%clk 0:01:05.4]} 26... Rxe3 {[%clk 0:03:28.4]} 27. Kf2 {[%clk 0:00:54]}
27... Rf3+ {[%clk 0:03:09.3]} 28. Rxf3 {[%clk 0:00:51.8]} 28... Bxf3 {[%clk
0:03:08.8]} 29. Kxf3 {[%clk 0:00:50.9]} 29... f6 {[%clk 0:03:08]} 30. Rxh7
{[%clk 0:00:49.8]} 30... fxe5 {[%clk 0:03:07]} 31. Rxg7+ {[%clk 0:00:48.3]}
31... Kd6 {[%clk 0:03:06.6]} 32. h4 {[%clk 0:00:46.9]} 32... Kd5 {[%clk
0:03:04.9]} 33. Ke3 {[%clk 0:00:45.5]} 33... Kc4 {[%clk 0:03:03.5]} 34. h5
{[%clk 0:00:44.9]} 34... Kxb4 {[%clk 0:03:01.9]} 35. h6 {[%clk 0:00:44.1]} 35...
Kc4 {[%clk 0:03:00.8]} 36. h7 {[%clk 0:00:43.2]} 36... Kd5 {[%clk 0:02:59.5]}
37. h8=Q {[%clk 0:00:42.1]} 37... Kc4 {[%clk 0:02:58.5]} 38. Rd7 {[%clk
0:00:40.7]} 38... Kc5 {[%clk 0:02:56.9]} 39. Qc8+ {[%clk 0:00:39.5]} 39... Kb6
{[%clk 0:02:56]} 40. Rb7+ {[%clk 0:00:38.5]} 40... Ka6 {[%clk 0:02:54.3]} 41.
Qa8# {[%clk 0:00:37.6]} 1-0

[Event "Live Chess"]
[Site "Chess.com"]
[Date "2023.05.21"]
[Round "-"]
[White "GMMickeyAdams"]
[Black "JoeRoot66"]
[Result "1-0"]
[WhiteElo "2794"]
[BlackElo "1917"]
[TimeControl "300"]
[EndTime "4:00:43 PDT"]
[Termination "GMMickeyAdams won by resignation"]

1. c4 {[%clk 0:04:58.2]} 1... e6 {[%clk 0:04:59]} 2. g3 {[%clk 0:04:56.7]} 2...
Nf6 {[%clk 0:04:57.9]} 3. Bg2 {[%clk 0:04:56.1]} 3... d5 {[%clk 0:04:56]} 4. Nf3
{[%clk 0:04:55.1]} 4... Be7 {[%clk 0:04:53.2]} 5. O-O {[%clk 0:04:52.5]} 5...
O-O {[%clk 0:04:52.5]} 6. d4 {[%clk 0:04:51.9]} 6... dxc4 {[%clk 0:04:50.2]} 7.
Qc2 {[%clk 0:04:50.6]} 7... a6 {[%clk 0:04:49.1]} 8. a4 {[%clk 0:04:49]} 8...
Bd7 {[%clk 0:04:47.9]} 9. Qxc4 {[%clk 0:04:47.6]} 9... Bc6 {[%clk 0:04:47.4]}
10. Bf4 {[%clk 0:04:44.9]} 10... h6 {[%clk 0:04:42.6]} 11. Nc3 {[%clk
0:04:40.3]} 11... Nbd7 {[%clk 0:04:13.7]} 12. Rfd1 {[%clk 0:04:37]} 12... Nb6
{[%clk 0:04:11.8]} 13. Qb3 {[%clk 0:04:34.8]} 13... Nfd5 {[%clk 0:04:03]} 14.
Ne5 {[%clk 0:04:03.1]} 14... Nxc3 {[%clk 0:03:09.5]} 15. bxc3 {[%clk 0:03:59.9]}
15... Bxg2 {[%clk 0:03:06.7]} 16. Kxg2 {[%clk 0:03:58.8]} 16... Qd5+ {[%clk
0:03:04.9]} 17. Qxd5 {[%clk 0:03:57.1]} 17... Nxd5 {[%clk 0:03:04.6]} 18. Bd2
{[%clk 0:03:52.3]} 18... c5 {[%clk 0:02:58.3]} 19. Rab1 {[%clk 0:03:46.7]} 19...
Ra7 {[%clk 0:02:27.3]} 20. e4 {[%clk 0:03:43.3]} 20... Nf6 {[%clk 0:02:19.8]}
21. Kf3 {[%clk 0:03:38.9]} 21... cxd4 {[%clk 0:02:07.4]} 22. cxd4 {[%clk
0:03:37.1]} 22... Rd8 {[%clk 0:02:01.3]} 23. Be3 {[%clk 0:03:35.1]} 23... Nd7
{[%clk 0:01:44.6]} 24. Rdc1 {[%clk 0:03:21.6]} 24... f6 {[%clk 0:01:26.9]} 25.
Nxd7 {[%clk 0:03:05.5]} 25... Rxd7 {[%clk 0:01:26.8]} 26. Rc8+ {[%clk
0:03:03.1]} 26... Kf7 {[%clk 0:01:21.9]} 27. d5 {[%clk 0:03:02.5]} 27... b6
{[%clk 0:01:17.6]} 28. dxe6+ {[%clk 0:03:00.5]} 28... Kxe6 {[%clk 0:01:15.3]}
29. Rxb6+ {[%clk 0:03:00]} 29... Kf7 {[%clk 0:01:13]} 30. Rbc6 {[%clk
0:02:50.6]} 30... Rab7 {[%clk 0:01:10.4]} 31. Rxa6 {[%clk 0:02:49.3]} 31... Rb4
{[%clk 0:00:56.8]} 32. Rca8 {[%clk 0:02:43.5]} 32... Rb3 {[%clk 0:00:51.4]} 33.
R8a7 {[%clk 0:02:41.2]} 33... Rxa7 {[%clk 0:00:47.2]} 34. Rxa7 {[%clk
0:02:39.6]} 34... Ke6 {[%clk 0:00:43.3]} 35. a5 {[%clk 0:02:35.4]} 35... Ra3
{[%clk 0:00:39.7]} 36. Kg2 {[%clk 0:02:31.3]} 36... Ra4 {[%clk 0:00:35.8]} 37.
a6 {[%clk 0:02:27.7]} 37... Rxe4 {[%clk 0:00:31.4]} 38. Rb7 {[%clk 0:02:25.8]}
38... Ra4 {[%clk 0:00:28.8]} 39. a7 {[%clk 0:02:24.8]} 39... g5 {[%clk
0:00:19.1]} 40. Rb8 {[%clk 0:02:23.2]} 1-0

[Event "Live Chess"]
[Site "Chess.com"]
[Date "2023.05.21"]
[Round "-"]
[White "Tushinskiy"]
[Black "WelshTiger"]
[Result "1/2-1/2"]
[WhiteElo "2192"]
[BlackElo "2323"]
[TimeControl "300"]
[EndTime "4:00:44 PDT"]
[Termination "Game drawn by repetition"]

1. d4 {[%clk 0:04:54.4]} 1... d5 {[%clk 0:04:57]} 2. c3 {[%clk 0:04:54.3]} 2...
Nf6 {[%clk 0:04:55.3]} 3. Nf3 {[%clk 0:04:54.2]} 3... Bg4 {[%clk 0:04:53.4]} 4.
Bf4 {[%clk 0:04:49.7]} 4... e6 {[%clk 0:04:52.2]} 5. Nbd2 {[%clk 0:04:47.9]}
5... Bd6 {[%clk 0:04:51.5]} 6. Bg3 {[%clk 0:04:46.8]} 6... Nbd7 {[%clk
0:04:46.3]} 7. e3 {[%clk 0:04:45.4]} 7... Bxg3 {[%clk 0:04:45.1]} 8. hxg3 {[%clk
0:04:43.4]} 8... Qe7 {[%clk 0:04:44.8]} 9. Qb3 {[%clk 0:04:39.9]} 9... Rb8
{[%clk 0:04:40.4]} 10. Qa4 {[%clk 0:04:34.1]} 10... a6 {[%clk 0:04:38.1]} 11.
Bd3 {[%clk 0:04:31.9]} 11... h6 {[%clk 0:04:35.8]} 12. Ne5 {[%clk 0:04:28.3]}
12... O-O {[%clk 0:04:26.9]} 13. Nxg4 {[%clk 0:04:23]} 13... Nxg4 {[%clk
0:04:25.9]} 14. Nf3 {[%clk 0:04:22.2]} 14... e5 {[%clk 0:04:20.1]} 15. dxe5
{[%clk 0:04:20.7]} 15... Ndxe5 {[%clk 0:04:18.5]} 16. Be2 {[%clk 0:04:19.8]}
16... c6 {[%clk 0:04:13.5]} 17. Nxe5 {[%clk 0:04:17.3]} 17... Nxe5 {[%clk
0:04:12.4]} 18. Qf4 {[%clk 0:04:12.1]} 18... Ng6 {[%clk 0:04:09.3]} 19. Qg4
{[%clk 0:04:10]} 19... Ne5 {[%clk 0:04:06.8]} 20. Qh5 {[%clk 0:04:08.1]} 20...
Qg5 {[%clk 0:04:01.4]} 21. Qxg5 {[%clk 0:04:06.7]} 21... hxg5 {[%clk 0:04:01.3]}
22. Kd2 {[%clk 0:04:02.5]} 22... f6 {[%clk 0:04:00.8]} 23. Rae1 {[%clk 0:04:00]}
23... Kf7 {[%clk 0:04:00.3]} 24. b3 {[%clk 0:03:56.9]} 24... Rh8 {[%clk
0:03:59.1]} 25. f4 {[%clk 0:03:53.7]} 25... gxf4 {[%clk 0:03:56.9]} 26. gxf4
{[%clk 0:03:53.6]} 26... Nd7 {[%clk 0:03:54.5]} 27. g4 {[%clk 0:03:51.7]} 27...
Nc5 {[%clk 0:03:53.6]} 28. Bf3 {[%clk 0:03:50.7]} 28... Rxh1 {[%clk 0:03:51.4]}
29. Rxh1 {[%clk 0:03:49.1]} 29... Re8 {[%clk 0:03:51.2]} 30. Re1 {[%clk
0:03:26.4]} 30... Rh8 {[%clk 0:03:48.7]} 31. Re2 {[%clk 0:03:25.2]} 31... Rh3
{[%clk 0:03:46.7]} 32. Bg2 {[%clk 0:03:24.3]} 32... Rg3 {[%clk 0:03:45.9]} 33.
b4 {[%clk 0:03:22.2]} 33... Ne4+ {[%clk 0:03:29.3]} 34. Bxe4 {[%clk 0:03:18.8]}
34... dxe4 {[%clk 0:03:29.2]} 35. c4 {[%clk 0:03:16.6]} 35... Rxg4 {[%clk
0:03:27.8]} 36. Kc3 {[%clk 0:03:15.2]} 36... Rg1 {[%clk 0:03:13.7]} 37. Kd4
{[%clk 0:03:12.9]} 37... Rc1 {[%clk 0:03:10.4]} 38. a4 {[%clk 0:03:07]} 38... b6
{[%clk 0:02:55.4]} 39. Rh2 {[%clk 0:02:59]} 39... f5 {[%clk 0:02:50.1]} 40. Rh8
{[%clk 0:02:54.1]} 40... Rd1+ {[%clk 0:01:57.2]} 41. Ke5 {[%clk 0:02:50.5]}
41... Rd3 {[%clk 0:01:56.3]} 42. Rc8 {[%clk 0:02:47.1]} 42... Rxe3 {[%clk
0:01:54.1]} 43. Rxc6 {[%clk 0:02:46.2]} 43... Rc3 {[%clk 0:01:53.7]} 44. Kxf5
{[%clk 0:02:38.2]} 44... e3 {[%clk 0:01:51.4]} 45. Rxb6 {[%clk 0:02:33.2]} 45...
Rxc4 {[%clk 0:01:49]} 46. Rb7+ {[%clk 0:02:24]} 46... Kg8 {[%clk 0:01:48.1]} 47.
Rb8+ {[%clk 0:02:20.8]} 47... Kh7 {[%clk 0:01:46.7]} 48. Re8 {[%clk 0:02:19.4]}
48... Rxb4 {[%clk 0:01:45.6]} 49. Rxe3 {[%clk 0:02:18.7]} 49... Rxa4 {[%clk
0:01:44.9]} 50. Kg5 {[%clk 0:02:17.3]} 50... Ra1 {[%clk 0:01:41.8]} 51. Re7
{[%clk 0:02:15.2]} 51... a5 {[%clk 0:01:39.5]} 52. Ra7 {[%clk 0:02:14.3]} 52...
a4 {[%clk 0:01:38.9]} 53. f5 {[%clk 0:02:13.1]} 53... Kg8 {[%clk 0:01:34.2]} 54.
Kg6 {[%clk 0:02:05.5]} 54... Rg1+ {[%clk 0:01:33]} 55. Kh5 {[%clk 0:02:04.7]}
55... Rh1+ {[%clk 0:01:31.7]} 56. Kg6 {[%clk 0:02:01.8]} 56... Rg1+ {[%clk
0:01:30.7]} 57. Kh5 {[%clk 0:02:00.9]} 57... Rh1+ {[%clk 0:01:07.4]} 58. Kg6
{[%clk 0:01:58]} 58... Rg1+ {[%clk 0:01:06.7]} 1/2-1/2

[Event "Live Chess"]
[Site "Chess.com"]
[Date "2023.05.21"]
[Round "-"]
[White "Misha145Chess"]
[Black "KeithArkell"]
[Result "0-1"]
[WhiteElo "622"]
[BlackElo "2501"]
[TimeControl "300"]
[EndTime "4:00:45 PDT"]
[Termination "KeithArkell won by checkmate"]

1. g4 {[%clk 0:04:56.2]} 1... d5 {[%clk 0:04:57.2]} 2. Bg2 {[%clk 0:04:54.4]}
2... c6 {[%clk 0:04:56.7]} 3. h3 {[%clk 0:04:50.7]} 3... h5 {[%clk 0:04:55.8]}
4. e4 {[%clk 0:04:40.8]} 4... dxe4 {[%clk 0:04:53.1]} 5. Bxe4 {[%clk 0:04:38]}
5... Nf6 {[%clk 0:04:52.3]} 6. Bf3 {[%clk 0:04:29.4]} 6... hxg4 {[%clk
0:04:51.2]} 7. Bxg4 {[%clk 0:04:22.6]} 7... Bxg4 {[%clk 0:04:48.9]} 8. f3 {[%clk
0:04:16.5]} 8... Bf5 {[%clk 0:04:43.5]} 9. d4 {[%clk 0:04:10.1]} 9... e6 {[%clk
0:04:42.7]} 10. Bg5 {[%clk 0:04:05.1]} 10... Bd6 {[%clk 0:04:40.4]} 11. Nc3
{[%clk 0:03:59.3]} 11... Qc7 {[%clk 0:04:38.9]} 12. Qe2 {[%clk 0:03:55.4]} 12...
Bg3+ {[%clk 0:04:36.4]} 13. Kd2 {[%clk 0:03:42.8]} 13... Bf4+ {[%clk 0:04:35.1]}
14. Bxf4 {[%clk 0:03:40.8]} 14... Qxf4+ {[%clk 0:04:34.3]} 15. Ke1 {[%clk
0:03:35]} 15... Nbd7 {[%clk 0:04:32.9]} 16. Rd1 {[%clk 0:03:25.4]} 16... Nh5
{[%clk 0:04:22.4]} 17. Qf2 {[%clk 0:03:12.7]} 17... Qg3 {[%clk 0:04:20.5]} 18.
Qxg3 {[%clk 0:03:08.9]} 18... Nxg3 {[%clk 0:04:19.5]} 19. Rh2 {[%clk 0:03:07.3]}
19... O-O-O {[%clk 0:04:17.6]} 20. Rg2 {[%clk 0:03:05.9]} 20... Nh5 {[%clk
0:04:16.8]} 21. Rg5 {[%clk 0:03:04.3]} 21... g6 {[%clk 0:04:15.9]} 22. Nge2
{[%clk 0:03:01]} 22... Nhf6 {[%clk 0:04:13.4]} 23. Nf4 {[%clk 0:02:58.5]} 23...
Bxh3 {[%clk 0:04:10.2]} 24. Nxh3 {[%clk 0:02:55.3]} 24... Rxh3 {[%clk
0:04:08.7]} 25. Rd3 {[%clk 0:02:49.9]} 25... Rdh8 {[%clk 0:04:07.1]} 26. Kd2
{[%clk 0:02:45.2]} 26... Rh2+ {[%clk 0:04:06]} 27. Ne2 {[%clk 0:02:43.6]} 27...
Rf2 {[%clk 0:04:04.5]} 28. Ke3 {[%clk 0:02:41.8]} 28... Rhh2 {[%clk 0:04:03.4]}
29. Rd2 {[%clk 0:02:38]} 29... Nd5+ {[%clk 0:04:02.3]} 30. Kd3 {[%clk 0:02:35]}
30... Rxe2 {[%clk 0:04:01.4]} 31. Rxe2 {[%clk 0:02:33.7]} 31... Nf4+ {[%clk
0:04:00.3]} 32. Ke3 {[%clk 0:02:27.7]} 32... Nxe2 {[%clk 0:03:59.5]} 33. c4
{[%clk 0:02:19.3]} 33... Nf6 {[%clk 0:03:57.5]} 34. b4 {[%clk 0:02:12.8]} 34...
Nh5 {[%clk 0:03:56.4]} 35. b5 {[%clk 0:02:07]} 35... Nef4 {[%clk 0:03:54.9]} 36.
Rc5 {[%clk 0:01:59.5]} 36... Re2# {[%clk 0:03:52.9]} 0-1